[Event "Polish Youth G16 Championship 2023"]
[Site "Jastrzebia Gora"]
[Date "2023.03.13"]
[Round "3.5"]
[White "Smietanska, Wiktoria"]
[Black "Zielinska, Aleksandra"]
[Result "1-0"]
[ECO "A21"]
[WhiteElo "1954"]
[BlackElo "1613"]
[Annotator "TA"]
[PlyCount "71"]
[EventDate "2023.03.11"]
[EventType "swiss"]
[EventCountry "POL"]
[SourceTitle "playchess.com"]
[Source "ChessBase"]
[SourceQuality "1"]
[TimeControl "40/5400+30:1800+30"]

{[%evp 23,71,37,37,38,44,30,63,55,43,29,33,23,29,19,43,10,4,11,10,0,0,0,14,0,5,0,8,0,34,21,19,12,69,55,141,91,117,113,144,99,159,158,704,665,583,493,1312,1307,29997,29998]} 1. c4 e5 2. Nc3 Bb4 3. Nd5 Bc5 4. e3 c6 5. Nc3 Nf6 6. d4 exd4 7. exd4 Be7 8. Nf3 O-O 9. Bd3 d5 10. O-O Nbd7 {[%cal Bb8d7,Bd7f6,Bf6e4][%mdl 32]} 11. cxd5 Nxd5 12. Nxd5 cxd5 13. Qb3 {D41: Queen's Gambit Declined: Semi-Tarrasch with 5 cxd5.} Nf6 14. Bg5 {[#]} Rb8 $146 ({Predecessor:} 14... h6 15. Bh4 b6 16. Ne5 Bb7 17. Rfe1 Ne4 18. Bxe7 Qxe7 19. f3 Ng5 20. Ng6 Nxf3+ 21. Kh1 Qf6 22. Ne7+ Kh8 23. gxf3 Qxf3+ 24. Kg1 Qg4+ 25. Kh1 Qf3+ {½-½ Pasko,A (2303)-Myshakov,F (2178) UKR-ch sf U16 2003 (6)}) 15. Ne5 {White is slightly better.} Be6 16. Rfe1 {Against Ne4} a6 17. Re2 Ne4 {[%mdl 64] Discovered Attack} 18. Bxe7 (18. Bf4 {is interesting.} Bg5 19. Bxg5 Qxg5 20. Qb4) 18... Qxe7 19. f3 Nd6 20. Rae1 {[%cal Oe5f7] Hoping for Nxf7!} Qf6 21. Qb6 Rfd8 22. Rc2 {[%cal Be2c2,Bc2c3,Bc3e3,Be3e7,Be7g7][%mdl 32]} Ne8 23. Rc3 Qe7 24. Bb1 Qd6 25. Qb3 f6 26. Nd3 Bf7 27. Nc5 b5 ({Black should play} 27... a5 $11) 28. Rce3 Qc6 (28... Nc7 $14) 29. Qa3 (29. Re7 $142 {[%cal Ob1h7] Bxh7+! is the strong threat.} Nd6 30. Qc2) 29... Ra8 30. Re7 {[%cal Ob1h7] Threatens to win with Bxh7+!} Nd6 31. Qc3 a5 {[#]} ({Better is} 31... Re8) 32. Qc2 $1 $40 {[%mdl 128] White has strong attack. White is much more active.} g6 $2 {This costs Black the game.} (32... f5 $16 33. Nb7 Qxc2 34. Bxc2 Nxb7) 33. Qd2 $18 {And now Qh6 would win.} g5 34. Qc2 ({Less strong is} 34. Ne6 Rd7 35. Rxd7 (35. Qd3 Bg6 $15) 35... Qxd7 $16) 34... Bg6 {[#]} (34... f5 $142 35. Qc1 h6) 35. Rg7+ $3 {[%mdl 576] Decoy} Kf8 (35... Kxg7 36. Ne6+) 36. Ne6+ {[%mdl 64] Discovered Attack, Double Attack. Artfully played by Smietanska.   Weighted Error Value: White=0.16 (very precise) /Black=0.47} 1-0

[Event "Polish Youth G16 Championship 2023"]
[Site "Jastrzebia Gora"]
[Date "2023.03.13"]
[Round "3.6"]
[White "Biniak, Zuzanna"]
[Black "Szopa, Emilia"]
[Result "0-1"]
[ECO "B12"]
[WhiteElo "1457"]
[BlackElo "1709"]
[Annotator "NA RC COMBH"]
[PlyCount "106"]
[EventDate "2023.03.11"]
[EventType "swiss"]
[EventCountry "POL"]
[SourceTitle "playchess.com"]
[Source "ChessBase"]
[SourceQuality "1"]
[TimeControl "40/5400+30:1800+30"]

1. e4 {[%emt 0:00:02]} c6 {[%emt 0:00:23]} 2. d4 {[%emt 0:00:26]} d5 {[%emt 0:00:40]} 3. e5 {[%emt 0:00:10]} c5 {[%emt 0:01:28]} 4. c3 {[%emt 0:00:20]} Nc6 {[%emt 0:01:24]} 5. Nf3 {[%emt 0:00:17]} Bg4 {[%emt 0:01:42]} 6. Be2 {[%emt 0:04:14]} e6 {[%emt 0:02:30]} 7. a3 {[%emt 0:03:37]} Qc7 {[%emt 0:03:18]} 8. O-O {[%emt 0:03:48]} Nge7 {[%emt 0:00:45]} 9. b4 {[%emt 0:01:40]} c4 {[%emt 0:02:56]} 10. Nh4 {[%emt 0:06:45]} Bxe2 {[%emt 0:04:13]} 11. Qxe2 {[%emt 0:00:11]} Ng6 {[%emt 0:01:04]} 12. Nxg6 {[%emt 0:01:21]} hxg6 {[%emt 0:00:17]} 13. Be3 {[%emt 0:03:05]} Be7 {[%emt 0:03:09]} 14. f4 {[%emt 0:02:19]} Bd8 {[%emt 0:07:08]} 15. Nd2 {[%emt 0:02:38]} Ne7 {[%emt 0:01:22]} 16. g4 {[%emt 0:05:07]} Qd7 {[%emt 0:08:20]} 17. Qf3 {[%emt 0:05:25]} Bc7 {[%emt 0:01:33]} 18. Rf2 {[%emt 0:01:25]} O-O-O {[%emt 0:00:56]} 19. Nf1 {[%emt 0:01:34]} Rh7 {[%emt 0:03:08]} 20. Ng3 {[%emt 0:05:14]} Rdh8 {[%emt 0:01:32]} 21. Raa2 {[%emt 0:06:18]} f6 {[%emt 0:04:41]} 22. a4 {[%emt 0:04:50]} g5 {[%emt 0:02:48]} 23. exf6 {[%emt 0:01:31]} gxf6 {[%emt 0:05:34]} 24. Nh5 {[%emt 0:03:18]} Rxh5 {[%emt 0:15:38]} 25. gxh5 {[%emt 0:00:38]} g4 {[%emt 0:00:22]} 26. Qe2 {[%emt 0:02:05]} f5 {[%emt 0:01:00]} 27. h3 {[%emt 0:03:20]} Ng8 {[%emt 0:02:50]} 28. hxg4 {[%emt 0:00:45]} fxg4 {[%emt 0:00:23]} 29. Bd2 {[%emt 0:18:14]} Rxh5 {[%emt 0:04:41]} 30. Rh2 {[%emt 0:03:31]} Rxh2 {[%emt 0:04:31]} 31. Qxh2 {[%emt 0:00:11]} Qg7 {[%emt 0:01:03]} 32. Be1 {[%emt 0:04:17]} Nf6 {[%emt 0:00:52]} 33. Re2 {[%emt 0:01:49]} Ne4 {[%emt 0:00:58]} 34. Qg2 {[%emt 0:01:35]} Bxf4 {[%emt 0:00:53]} 35. Rxe4 {[%emt 0:00:11]} dxe4 {[%emt 0:00:32]} 36. Qxe4 {[%emt 0:00:10]} Qh6 {[%emt 0:00:12]} 37. Qg2 {[%emt 0:02:54]} Qh3 {[%emt 0:02:01]} 38. Qe2 {[%emt 0:02:57]} Qe3+ {[%emt 0:02:01]} 39. Qxe3 {[%emt 0:00:12]} Bxe3+ {[%emt 0:00:06]} 40. Kg2 {[%emt 0:00:00]} Bf4 {[%emt 0:00:00]} 41. b5 {[%emt 0:03:39]} Kd7 {[%emt 0:00:27]} 42. Kf1 {[%emt 0:01:07]} Kd6 {[%emt 0:00:18]} 43. Ke2 {[%emt 0:00:07]} Kd5 {[%emt 0:00:09]} 44. Bf2 {[%emt 0:00:09]} Ke4 {[%emt 0:00:39]} 45. Bg1 {[%emt 0:00:30]} g3 {[%emt 0:00:32]} 46. a5 {[%emt 0:00:05]} a6 {[%emt 0:00:09]} 47. b6 {[%emt 0:00:27]} Bg5 {[%emt 0:00:21]} 48. Ke1 {[%emt 0:00:35]} Be3 {[%emt 0:00:51]} 49. Bxe3 {[%emt 0:00:15]} Kxe3 {[%emt 0:00:08]} 50. Kf1 {[%emt 0:00:01]} Kf3 {[%emt 0:00:13]} 51. Kg1 {[%emt 0:00:04]} g2 {[%emt 0:00:07]} 52. d5 {[%emt 0:00:07]} exd5 {[%emt 0:00:08]} 53. Kh2 {[%emt 0:00:06]} Kf2 {[%emt 0:00:06]} 0-1

[Event "Polish Youth G16 Championship 2023"]
[Site "Jastrzebia Gora"]
[Date "2023.03.13"]
[Round "3.7"]
[White "Bandyk, Joanna"]
[Black "Lazniewska, Zofia"]
[Result "1/2-1/2"]
[ECO "B36"]
[WhiteElo "1459"]
[BlackElo "1621"]
[Annotator "NA RC COMBH"]
[PlyCount "77"]
[EventDate "2023.03.11"]
[EventType "swiss"]
[EventCountry "POL"]
[SourceTitle "playchess.com"]
[Source "ChessBase"]
[SourceQuality "1"]
[TimeControl "40/5400+30:1800+30"]

1. e4 c5 2. Nf3 Nc6 3. d4 cxd4 4. Nxd4 g6 5. c4 Nf6 6. Nc3 d6 7. f3 Nxd4 8. Qxd4 Bg7 9. Be3 O-O 10. Qd2 Be6 11. Rc1 a5 12. Bd3 a4 13. O-O Qa5 14. Nd5 Nxd5 15. Qxa5 Rxa5 16. exd5 Bd7 17. Rb1 Rc8 18. b4 Raa8 19. a3 e6 20. dxe6 Bxe6 21. Rfc1 f5 22. Bf4 Rd8 23. Re1 Kf7 24. Re2 Bf8 25. Rd1 Rac8 26. Bg5 Rd7 27. Rc1 Rdc7 28. Rec2 Bg7 29. Bf4 Be5 30. Bxe5 dxe5 31. c5 Rd8 32. Bb5 Bb3 33. Bc4+ Bxc4 34. Rxc4 Rd3 35. R4c3 Rd5 36. Kf1 Ke6 37. Ke2 Rd4 38. Rd3 Kd5 39. Ke3 1/2-1/2

[Event "Polish Youth G16 Championship 2023"]
[Site "Jastrzebia Gora"]
[Date "2023.03.13"]
[Round "3.8"]
[White "Siekanska, Maria"]
[Black "Nowak, Zuzanna"]
[Result "1-0"]
[ECO "E04"]
[WhiteElo "1996"]
[BlackElo "1427"]
[Annotator "TA"]
[PlyCount "81"]
[EventDate "2023.03.11"]
[EventType "swiss"]
[EventCountry "POL"]
[SourceTitle "playchess.com"]
[Source "ChessBase"]
[SourceQuality "1"]
[TimeControl "40/5400+30:1800+30"]

{[%evp 11,81,27,37,0,57,51,46,61,48,45,83,83,77,86,86,82,75,77,72,72,97,87,89,77,97,88,89,75,89,72,97,111,105,112,164,140,145,79,155,67,178,49,51,77,93,86,230,206,336,307,281,281,514,507,491,487,710,347,495,404,381,244,29980,29981,29982,1727,29983,29984,29984,29969,12831,1615]} 1. d4 {[%emt 0:00:01]} d5 {[%emt 0:00:08]} 2. c4 {[%emt 0:00:04]} e6 {[%emt 0:00:30]} 3. Nf3 {[%emt 0:00:18]} Nf6 {[%emt 0:00:15]} 4. g3 {[%emt 0:00:08]} dxc4 {[%emt 0:00:33]} 5. Bg2 {[%emt 0:00:11]} Nbd7 {[%emt 0:00:26]} 6. O-O {[%emt 0:04:57]} Rb8 {[%emt 0:01:49]} 7. Qc2 {[%emt 0:02:43][%cal Of3e5] E04: Open Catalan: 5 Nf3.} b6 {[%emt 0:00:49] [#]} (7... b5 $11) 8. Ne5 $146 {[%emt 0:03:11]} ({Predecessor:} 8. Rd1 Bb7 9. Ne5 Bxg2 10. Kxg2 Qc8 11. Qxc4 Qb7+ 12. Qc6 Bd6 13. f4 O-O 14. Nc3 b5 {1-0 Vega Gutierrez,S (2385)-Ramirez Allo,E (2242) Las Palmas Insular-chT Pref 1314 2013 (7.1)}) 8... Nxe5 {[%emt 0:06:50]} 9. dxe5 {[%emt 0:00:10] White is slightly better.} Nd7 10. Rd1 {[%emt 0:03:48]} c5 {[%emt 0:07:21]} 11. Nd2 {[%emt 0:03:49]} Qc7 {[%emt 0:12:46]} 12. Nxc4 {[%emt 0:02:35]} Bb7 {[%emt 0:01:11]} 13. Nd6+ {[%emt 0:03:20]} Bxd6 {[%emt 0:00:02]} 14. exd6 {[%emt 0:00:07]} Qc8 {[%emt 0:01:33]} 15. e4 {[%emt 0:01:31]} O-O {[%emt 0:00:24]} 16. b3 {[%emt 0:00:49]} Qe8 {[%emt 0:07:12]} 17. Bb2 {[%emt 0:00:53]} f6 {[%emt 0:01:20]} 18. Bh3 {[%emt 0:02:41]} Qf7 {[%emt 0:00:45]} 19. f4 {[%emt 0:04:37]} Rbe8 {[%emt 0:06:45]} 20. a4 {[%emt 0:03:40][%cal Ba2a4,Ba4a5,Ba5a6][%mdl 32]} Qg6 {[%emt 0:04:59]} 21. Bg2 {[%emt 0:04:40]} Kh8 {[%emt 0:04:52]} 22. a5 {[%emt 0:02:09]} b5 {[%emt 0:02:25]} (22... Ra8 $16 {was worth a try.} 23. Re1 e5) 23. a6 $1 $18 {[%emt 0:01:05]} Ba8 {[%emt 0:01:16]} 24. Qe2 {[%emt 0:04:39]} (24. b4 $142) 24... Rb8 {[%emt 0:04:01] [#]} (24... e5 $142) 25. Bf3 {[%emt 0:05:38]} (25. b4 $1 $16) 25... Rfc8 {[%emt 0:05:51] [#]} ({Black should play} 25... Bc6 $14) 26. e5 (26. b4 $1 $18) 26... Bxf3 $14 {[%emt 0:02:01]} 27. Qxf3 {[%emt 0:13:27][%cal Of4f5] f5! is the strong threat.} fxe5 {[%emt 0:02:25]} 28. Bxe5 {[%emt 0:00:38][%cal Ob3b4]} Nxe5 {[%emt 0:02:28] A mistake that costs the game.} (28... Qf7 $16 29. Qe2 Kg8) 29. fxe5 $18 {[%emt 0:00:07] Strongly threatening d7.} Rf8 {[%emt 0:00:07]} (29... Qg5 $142 30. Rac1 Kg8) 30. Qe2 {[%emt 0:01:39] Black must now prevent Rac1.} Kg8 {[%emt 0:08:15]} 31. Rac1 {[%emt 0:03:09]} c4 $2 {[%emt 0:02:47]} (31... h5 {keeps fighting.} 32. Rxc5 Qg5) 32. bxc4 {[%emt 0:01:15]} bxc4 {[%emt 0:00:01]} 33. Rxc4 {[%emt 0:00:49]} Rb3 {[%emt 0:03:28]} (33... h5 $142 34. d7 Rfd8) 34. Rg4 {[%emt 0:01:07]} (34. d7 $142 {White wants to mate with Rc8.} Rbb8 35. Rc7) 34... Qh6 {[%emt 0:01:38]} (34... Rb2 $142 35. Qxb2 Qxg4) 35. Qd2 {[%emt 0:04:52]} Qh5 {[%emt 0:01:22]} 36. Qg5 {[%emt 0:01:20][%csl Gg4][%cal Rg5g7]} Qf7 {[%emt 0:00:17]} (36... Qxg5 $18 37. Rxg5 Rb4) 37. Rf4 {[%emt 0:00:17] Active counter play!} Qd7 {[%emt 0:00:18]} 38. Rxf8+ {[%emt 0:01:37]} Kxf8 {[%emt 0:00:02]} 39. Rc1 {[%emt 0:00:31]} h6 {[%emt 0:04:58]} 40. Qf4+ {[%emt 0:00:00]} Kg8 {[%emt 0:00:00]} 41. Qc4 {[%emt 0:01:44] Weighted Error Value: White=0.42/Black=0.49} (41. Rc7 $142 Rb1+ 42. Kg2) 1-0

[Event "Polish Youth G16 Championship 2023"]
[Site "Jastrzebia Gora"]
[Date "2023.03.13"]
[Round "3.9"]
[White "Pawicka, Magdalena"]
[Black "Predkiewicz, Paulina"]
[Result "1-0"]
[ECO "C50"]
[WhiteElo "1805"]
[BlackElo "1402"]
[Annotator "NA RC COMBH"]
[PlyCount "89"]
[EventDate "2023.03.11"]
[EventType "swiss"]
[EventCountry "POL"]
[SourceTitle "playchess.com"]
[Source "ChessBase"]
[SourceQuality "1"]
[TimeControl "40/5400+30:1800+30"]

1. e4 {[%emt 0:00:05]} e5 {[%emt 0:00:04]} 2. Nf3 {[%emt 0:00:06]} Nc6 {[%emt 0:00:07]} 3. Bc4 {[%emt 0:00:07]} Nf6 {[%emt 0:00:06]} 4. d3 {[%emt 0:00:05]} Bc5 {[%emt 0:00:10]} 5. c3 {[%emt 0:00:10]} d6 {[%emt 0:01:20]} 6. Bb3 {[%emt 0:00:15]} O-O {[%emt 0:03:00]} 7. O-O {[%emt 0:01:03]} Bb6 {[%emt 0:01:47]} 8. Nbd2 {[%emt 0:01:42]} Be6 {[%emt 0:04:18]} 9. Bc2 {[%emt 0:00:17]} a5 {[%emt 0:02:35]} 10. h3 {[%emt 0:02:24]} Qd7 {[%emt 0:01:55]} 11. Ng5 {[%emt 0:04:05]} Kh8 {[%emt 0:04:18]} 12. Ndf3 {[%emt 0:08:09]} h6 {[%emt 0:01:36]} 13. Nxe6 {[%emt 0:00:06]} fxe6 {[%emt 0:00:20]} 14. Be3 {[%emt 0:07:16]} Bxe3 {[%emt 0:16:07]} 15. fxe3 {[%emt 0:00:06]} d5 {[%emt 0:01:05]} 16. d4 {[%emt 0:25:22]} dxe4 {[%emt 0:07:48]} 17. Nxe5 {[%emt 0:00:40]} Nxe5 {[%emt 0:01:10]} 18. dxe5 {[%emt 0:00:20]} Qxd1 {[%emt 0:09:15]} 19. Raxd1 {[%emt 0:05:44]} Nd5 {[%emt 0:00:28]} 20. Rxf8+ {[%emt 0:02:21]} Rxf8 {[%emt 0:00:19]} 21. Bxe4 {[%emt 0:00:18]} c6 {[%emt 0:05:07]} 22. Rd3 {[%emt 0:04:40]} Kg8 {[%emt 0:02:07]} 23. c4 {[%emt 0:07:35]} Nb6 {[%emt 0:00:37]} 24. b3 {[%emt 0:06:42]} Kf7 {[%emt 0:01:00]} 25. Bf3 {[%emt 0:01:49]} Re8 {[%emt 0:04:23]} 26. Kf2 {[%emt 0:07:24]} Ke7 {[%emt 0:01:44]} 27. Bg4 {[%emt 0:01:01]} Nd7 {[%emt 0:01:48]} 28. Rd6 {[%emt 0:00:20]} Nc5 {[%emt 0:00:13]} 29. Ke2 {[%emt 0:01:26]} Kf7 {[%emt 0:01:01]} 30. Kf3 {[%emt 0:03:02]} g6 {[%emt 0:01:28]} 31. h4 {[%emt 0:00:25]} Kg7 {[%emt 0:01:03]} 32. e4 {[%emt 0:00:34]} g5 {[%emt 0:02:02]} 33. hxg5 {[%emt 0:00:37]} hxg5 {[%emt 0:00:08]} 34. Ke3 {[%emt 0:00:32]} Re7 {[%emt 0:01:57]} 35. Kd4 {[%emt 0:00:24]} Na6 {[%emt 0:00:46]} 36. Rxe6 {[%emt 0:02:01]} Rxe6 {[%emt 0:00:51]} 37. Bxe6 {[%emt 0:00:04]} Kf8 {[%emt 0:00:07]} 38. Bc8 {[%emt 0:00:21]} Nb4 {[%emt 0:00:15]} 39. Bxb7 {[%emt 0:00:51]} Nxa2 {[%emt 0:00:13]} 40. Bxc6 {[%emt 0:00:00]} Nc1 {[%emt 0:00:00]} 41. Kc5 {[%emt 0:03:11]} Nxb3+ {[%emt 0:00:25]} 42. Kd6 {[%emt 0:00:11]} Nd4 {[%emt 0:00:18]} 43. Bd7 {[%emt 0:00:26]} g4 {[%emt 0:00:35]} 44. e6 {[%emt 0:00:15]} Nxe6 {[%emt 0:00:06]} 45. Kxe6 {[%emt 0:00:07]} 1-0

[Event "Polish Youth G16 Championship 2023"]
[Site "Jastrzebia Gora"]
[Date "2023.03.13"]
[Round "3.10"]
[White "Sliwicka, Weronika"]
[Black "Kicinska, Magdalena"]
[Result "0-1"]
[ECO "B12"]
[WhiteElo "1374"]
[BlackElo "1573"]
[Annotator "NA RC COMBH"]
[PlyCount "56"]
[EventDate "2023.03.11"]
[EventType "swiss"]
[EventCountry "POL"]
[SourceTitle "playchess.com"]
[Source "ChessBase"]
[SourceQuality "1"]
[TimeControl "40/5400+30:1800+30"]

1. e4 {[%emt 0:00:02]} c6 {[%emt 0:00:05]} 2. d4 {[%emt 0:00:04]} d5 {[%emt 0:00:03]} 3. e5 {[%emt 0:00:03]} Bf5 {[%emt 0:00:09]} 4. c4 {[%emt 0:00:10]} e6 {[%emt 0:01:55]} 5. Nc3 {[%emt 0:01:12]} Nd7 {[%emt 0:02:30]} 6. a3 {[%emt 0:01:31]} Ne7 {[%emt 0:03:06]} 7. h4 {[%emt 0:15:18]} h5 {[%emt 0:01:27]} 8. Be3 {[%emt 0:05:59]} dxc4 {[%emt 0:03:37]} 9. Bxc4 {[%emt 0:00:30]} Nb6 {[%emt 0:00:51]} 10. Bb3 {[%emt 0:00:16]} Ned5 {[%emt 0:01:01]} 11. Nxd5 {[%emt 0:15:11]} Nxd5 {[%emt 0:00:15]} 12. Qd2 {[%emt 0:00:31]} Qb6 {[%emt 0:10:36]} 13. Bxd5 {[%emt 0:01:53]} cxd5 {[%emt 0:00:47]} 14. Ne2 {[%emt 0:00:45]} Be7 {[%emt 0:03:11]} 15. Rc1 {[%emt 0:01:49]} O-O {[%emt 0:01:23]} 16. Nf4 {[%emt 0:02:21]} Rfc8 {[%emt 0:09:56]} 17. Nxh5 {[%emt 0:05:36]} Rxc1+ {[%emt 0:05:18]} 18. Qxc1 {[%emt 0:00:07]} Qd8 {[%emt 0:00:37]} 19. g3 {[%emt 0:05:54]} Be4 {[%emt 0:03:59]} 20. Rh2 {[%emt 0:05:11]} Rc8 {[%emt 0:00:28]} 21. Qd1 {[%emt 0:00:36]} Qa5+ {[%emt 0:04:23]} 22. Bd2 {[%emt 0:00:49]} Qb6 {[%emt 0:00:31]} 23. Qg4 {[%emt 0:05:23]} g6 {[%emt 0:00:53]} 24. Nf6+ {[%emt 0:02:02]} Bxf6 {[%emt 0:00:47]} 25. exf6 {[%emt 0:00:07]} Qxb2 {[%emt 0:08:06]} 26. Qf4 {[%emt 0:03:05]} Qb1+ {[%emt 0:00:48]} 27. Ke2 {[%emt 0:00:28]} Qd3+ {[%emt 0:00:13]} 28. Ke1 {[%emt 0:00:36]} Bf3 {[%emt 0:00:19]} 0-1

[Event "Polish Youth G16 Championship 2023"]
[Site "Jastrzebia Gora"]
[Date "2023.03.13"]
[Round "3.11"]
[White "Kulczycka, Zofia"]
[Black "Bauer, Maja"]
[Result "1/2-1/2"]
[ECO "B76"]
[WhiteElo "1547"]
[BlackElo "1383"]
[Annotator "NA COMBH"]
[PlyCount "61"]
[EventDate "2023.03.11"]
[EventType "swiss"]
[EventCountry "POL"]
[SourceTitle "playchess.com"]
[Source "ChessBase"]
[SourceQuality "1"]
[TimeControl "40/5400+30:1800+30"]

1. e4 {[%emt 0:00:03]} c5 {[%emt 0:00:11]} 2. Nf3 {[%emt 0:00:07]} d6 {[%emt 0:00:08]} 3. d4 {[%emt 0:00:10]} cxd4 {[%emt 0:00:14]} 4. Nxd4 {[%emt 0:00:08]} Nf6 {[%emt 0:00:23]} 5. Nc3 {[%emt 0:00:08]} g6 {[%emt 0:00:25]} 6. f3 {[%emt 0:00:09]} Bg7 {[%emt 0:00:38]} 7. Be3 {[%emt 0:00:10]} Nc6 {[%emt 0:00:25]} 8. Qd2 {[%emt 0:00:19]} O-O {[%emt 0:00:28]} 9. O-O-O {[%emt 0:00:17]} d5 {[%emt 0:01:54]} 10. Nxc6 {[%emt 0:00:25]} bxc6 {[%emt 0:00:11]} 11. Bc4 {[%emt 0:00:11]} Rb8 {[%emt 0:25:25]} 12. Bb3 {[%emt 0:08:02]} Be6 {[%emt 0:05:45]} 13. h4 {[%emt 0:13:08]} h5 {[%emt 0:11:49]} 14. g4 {[%emt 0:09:35]} Qa5 {[%emt 0:08:24]} 15. gxh5 {[%emt 0:19:01]} Nxh5 {[%emt 0:04:17]} 16. exd5 {[%emt 0:02:35]} Rfd8 {[%emt 0:13:16]} 17. Bd4 {[%emt 0:11:01]} Bxd5 {[%emt 0:02:41]} 18. Nxd5 {[%emt 0:03:09]} Qxd2+ {[%emt 0:00:54]} 19. Rxd2 {[%emt 0:00:07]} cxd5 {[%emt 0:01:47]} 20. Bxg7 {[%emt 0:02:05]} Kxg7 {[%emt 0:01:08]} 21. Rxd5 {[%emt 0:01:26]} Rxd5 {[%emt 0:02:13]} 22. Bxd5 {[%emt 0:00:07]} Ng3 {[%emt 0:00:56]} 23. Re1 {[%emt 0:03:36]} Nf5 {[%emt 0:00:49]} 24. Bc4 {[%emt 0:05:19]} e6 {[%emt 0:01:59]} 25. Rh1 {[%emt 0:00:31]} Rh8 {[%emt 0:02:08]} 26. Rd1 {[%emt 0:04:06]} Rxh4 {[%emt 0:01:16]} 27. Bb3 {[%emt 0:01:25]} Nd4 {[%emt 0:01:06]} 28. Rd3 {[%emt 0:02:42]} Rf4 {[%emt 0:02:29]} 29. c4 {[%emt 0:00:52]} Nxf3 {[%emt 0:01:28]} 30. c5 {[%emt 0:00:56]} Ne5 {[%emt 0:00:51]} 31. c6 1/2-1/2

[Event "Polish Youth G16 Championship 2023"]
[Site "Jastrzebia Gora"]
[Date "2023.03.13"]
[Round "3.12"]
[White "Kaczmarek, Paulina"]
[Black "Giemza, Julia"]
[Result "0-1"]
[ECO "B44"]
[WhiteElo "1317"]
[BlackElo "1536"]
[Annotator "NA RC COMBH"]
[PlyCount "140"]
[EventDate "2023.03.11"]
[EventType "swiss"]
[EventCountry "POL"]
[SourceTitle "playchess.com"]
[Source "ChessBase"]
[SourceQuality "1"]
[TimeControl "40/5400+30:1800+30"]

1. e4 {[%emt 0:00:02]} c5 {[%emt 0:00:11]} 2. Nf3 {[%emt 0:00:08]} e6 {[%emt 0:00:08]} 3. d4 {[%emt 0:00:18]} cxd4 {[%emt 0:00:09]} 4. Nxd4 {[%emt 0:00:08]} Nc6 {[%emt 0:00:07]} 5. Nb5 {[%emt 0:00:21]} d6 {[%emt 0:00:50]} 6. N1c3 {[%emt 0:00:21]} a6 {[%emt 0:01:23]} 7. Nd4 {[%emt 0:00:06]} Qc7 {[%emt 0:01:43]} 8. Be3 {[%emt 0:01:38]} Nf6 {[%emt 0:00:58]} 9. f3 {[%emt 0:02:36]} b5 {[%emt 0:01:42]} 10. Qd2 {[%emt 0:03:12]} Bb7 {[%emt 0:01:04]} 11. g4 {[%emt 0:05:22]} Rc8 {[%emt 0:02:33]} 12. Nxc6 {[%emt 0:07:41]} Bxc6 {[%emt 0:01:09]} 13. O-O-O {[%emt 0:04:42]} Be7 {[%emt 0:03:41]} 14. h4 {[%emt 0:03:47]} O-O {[%emt 0:04:20]} 15. h5 {[%emt 0:06:57]} Rfd8 {[%emt 0:01:29]} 16. g5 {[%emt 0:01:21]} Ne8 {[%emt 0:01:13]} 17. g6 {[%emt 0:01:54]} fxg6 {[%emt 0:09:04]} 18. hxg6 {[%emt 0:02:32]} h6 {[%emt 0:00:33]} 19. Bd3 {[%emt 0:04:22]} Bf6 {[%emt 0:03:31]} 20. f4 {[%emt 0:06:07]} Qb7 {[%emt 0:02:19]} 21. Rhf1 {[%emt 0:08:43]} b4 {[%emt 0:02:43]} 22. Ne2 {[%emt 0:00:50]} Bxe4 {[%emt 0:01:24]} 23. Bxe4 {[%emt 0:01:28]} Qxe4 {[%emt 0:00:07]} 24. Qd3 {[%emt 0:00:37]} Qxd3 {[%emt 0:06:07]} 25. Rxd3 {[%emt 0:00:08]} Rc6 {[%emt 0:04:41]} 26. Nd4 {[%emt 0:01:42]} Bxd4 {[%emt 0:01:16]} 27. Rxd4 {[%emt 0:00:53]} a5 {[%emt 0:00:43]} 28. f5 {[%emt 0:01:22]} e5 {[%emt 0:05:31]} 29. Rd5 {[%emt 0:01:58]} Ra8 {[%emt 0:01:13]} 30. Rb5 {[%emt 0:01:24]} Kf8 {[%emt 0:05:15]} 31. f6 {[%emt 0:01:44]} Nxf6 {[%emt 0:02:30]} 32. Rb7 {[%emt 0:04:59]} d5 {[%emt 0:02:59]} 33. Bxh6 {[%emt 0:04:06]} gxh6 {[%emt 0:00:16]} 34. Rf7+ {[%emt 0:00:04]} Kg8 {[%emt 0:00:06]} 35. R1xf6 {[%emt 0:00:29]} Rxf6 {[%emt 0:00:09]} 36. Rxf6 {[%emt 0:00:05]} Kg7 {[%emt 0:00:17]} 37. Re6 {[%emt 0:00:04]} e4 {[%emt 0:00:54]} 38. Kd2 {[%emt 0:00:12]} Rf8 {[%emt 0:00:33]} 39. Re5 {[%emt 0:00:42]} Rd8 {[%emt 0:01:15]} 40. Re6 {[%emt 0:00:00]} Rf8 {[%emt 0:00:00]} 41. Re5 {[%emt 0:02:08]} Kxg6 {[%emt 0:00:48]} 42. Rxd5 {[%emt 0:00:06]} Rf5 {[%emt 0:00:11]} 43. Rd6+ {[%emt 0:00:46]} Kg5 {[%emt 0:00:13]} 44. Ke3 {[%emt 0:00:09]} Re5 {[%emt 0:01:13]} 45. c3 {[%emt 0:03:06]} bxc3 {[%emt 0:01:01]} 46. bxc3 {[%emt 0:00:05]} h5 {[%emt 0:00:21]} 47. Rd1 {[%emt 0:01:27]} Kg4 {[%emt 0:02:42]} 48. Rg1+ {[%emt 0:00:50]} Kh3 {[%emt 0:00:54]} 49. Rh1+ {[%emt 0:01:21]} Kg2 {[%emt 0:02:58]} 50. Rh4 {[%emt 0:00:33]} Kg3 {[%emt 0:00:15]} 51. Rh1 {[%emt 0:00:36]} h4 {[%emt 0:00:13]} 52. Kd4 {[%emt 0:00:06]} Re8 {[%emt 0:00:12]} 53. Ke3 {[%emt 0:00:49]} h3 {[%emt 0:00:40]} 54. Rg1+ {[%emt 0:00:23]} Kh2 {[%emt 0:00:53]} 55. Rg5 {[%emt 0:00:46]} Kh1 {[%emt 0:00:22]} 56. Rh5 {[%emt 0:03:38]} h2 {[%emt 0:00:15]} 57. c4 {[%emt 0:01:12]} Rg8 {[%emt 0:02:50]} 58. Kxe4 {[%emt 0:06:56]} Kg2 {[%emt 0:02:36]} 59. c5 {[%emt 0:01:26]} h1=Q {[%emt 0:00:25]} 60. Rxh1 {[%emt 0:00:06]} Kxh1 {[%emt 0:00:07]} 61. Kd5 {[%emt 0:00:19]} Kg2 {[%emt 0:00:34]} 62. a4 {[%emt 0:01:25]} Kf3 {[%emt 0:00:11]} 63. c6 {[%emt 0:00:03]} Ke3 {[%emt 0:00:13]} 64. c7 {[%emt 0:06:31]} Rc8 {[%emt 0:01:56]} 65. Kd6 {[%emt 0:00:44]} Kd4 {[%emt 0:00:15]} 66. Kd7 {[%emt 0:00:21]} Rxc7+ {[%emt 0:01:23]} 67. Kxc7 {[%emt 0:00:40]} Kc5 {[%emt 0:00:10]} 68. Kd7 {[%emt 0:00:44]} Kb4 {[%emt 0:00:12]} 69. Kd6 {[%emt 0:00:10]} Kxa4 {[%emt 0:00:05]} 70. Kc5 Kb3 {[%emt 0:00:06]} 0-1